Cogmind - Beta 16.1 @@@ ROGUE MODE // 2026.02.12 @ 00:20:32 Player: Rudrot Result: Destroyed by K8-SPM(R) with Subdweller Machine Gun Performance ------------- Evolutions (0) 0 Regions Visited (2) 400 Robots Destroyed (45) 225 Value Destroyed (1074) 1074 Prototype IDs (0) 0 Alien Tech Used (0) 0 Bonus (-22) -22 TOTAL SCORE: 1677 Bonus ------- Friendly Fire -22 Cogmind --------- Core Integrity 0/250 Matter 219/300 Energy 141/170 System Corruption 0% Temperature Cool (0) Movement Rolling (110) Location -10/Subcaves Parts ------- > --- POWER (1) -------- Makeshift Power Source > --- PROPULSION (2) --- Subdweller Monowheel Subdweller Monowheel > --- UTILITY (2) ------ Makeshift Kinetic Plating Makeshift System Shield > --- WEAPON (2) ------- Riot Gun Barrage Gun > --- INVENTORY (5) ---- Improved Terrain Scanner Riot Gun Subdweller Beam Cannon Subdweller Beam Cannon Peak State ------------ > --- POWER ------------ Makeshift Power Source > --- PROPULSION ------- Subdweller Monowheel Subdweller Monowheel > --- UTILITY ---------- Makeshift Kinetic Plating Makeshift System Shield > --- WEAPON ----------- Riot Gun Barrage Gun > --- INVENTORY -------- Improved Terrain Scanner Riot Gun Subdweller Beam Cannon Subdweller Beam Cannon [Rating: 23] Favorites ----------- Power Ion Engine Engine Ion Engine Propulsion Wheel Wheel Wheel Utility Improved Terrain Scanner Device Improved Terrain Scanner Storage Small Storage Unit Processor Visual Processing Unit Hackware Makeshift System Shield Protection Makeshift Kinetic Plating Weapon Rocket Launcher Energy Gun Particle Gun Energy Cannon Subdweller Beam Cannon Ballistic Gun Assault Rifle Ballistic Cannon Improved Light Cannon Launcher Rocket Launcher Build | -11 -10 -10 ------- Run | Yrd Mat Sub Slots Evolved . | . . . Power . | . . . Propulsion . | . . . Utility . | . . . Weapon . | . . . Parts Attached 32 | 9 8 15 Power 5 | 1 1 3 Engine 5 | 1 1 3 Core . | . . . Reactor . | . . . Propulsion 8 | 4 1 3 Treads . | . . . Leg . | . . . Wheel 8 | 4 1 3 Hover . | . . . Flight . | . . . Utility 6 | 2 2 2 Device 2 | 1 1 . Storage 1 | 1 . . Processor 1 | . 1 . Hackware 1 | . . 1 Protection 1 | . . 1 Artifact . | . . . Weapon 13 | 2 4 7 Energy Gun 4 | 1 2 1 Energy Cannon 1 | . . 1 Ballistic Gun 2 | 1 . 1 Ballistic Cannon 2 | . 1 1 Launcher 4 | . 1 3 Special Weapon . | . . . Impact Weapon . | . . . Slashing Weapon . | . . . Piercing Weapon . | . . . Special Melee Weapon . | . . . Unidentified Prototypes . | . . . Parts Lost 10 | . . 10 Power 2 | . . 2 Propulsion 3 | . . 3 Utility 1 | . . 1 Weapon 4 | . . 4 Highest Loss Streak 4 | . . 4 To Critical Strikes . | . . . Average Backups 4 | . 4 4 Power . | . . . Propulsion . | . . . Utility . | . . . Weapon 3 | . 4 4 Tool/Special . | . . . Unused Backups 2 | . . 2 Power . | . . . Propulsion . | . . . Utility . | . . . Weapon 2 | . . 2 Tool/Special . | . . . Average Slot Usage (%) 89 | . 100 78 Engine 11 | . 14 8 Wheel 21 | . 28 14 Device 13 | . 14 12 Storage 1 | . 2 . Processor 10 | . 11 9 Hackware 1 | . . 3 Energy Gun 5 | . 3 9 Energy Cannon 1 | . . 2 Ballistic Gun 1 | . 1 1 Ballistic Cannon 7 | . 10 2 Launcher 11 | . 12 10 Peak Build Rating 23 | 9 13 23 Average Rating 12 | 6 12 13 On Entrance 7 | . 9 13 Avg Prop Armor Cover (%) . | . . . Naked Turns . | . . . Heaviest Build 18 | 15 18 18 Greatest Support 40 | 32 20 40 Greatest Overweight (x) 4 | 1 . 4 Average Overweight (x) . | . . . Largest Inventory Capacity 8 | 8 8 5 Average Capacity 5 | 7 5 5 Most Carried 6 | 2 6 5 Average Carried 4 | . 4 4 Final Capacity 8 | 8 5 5 Final Carried 5 | 1 5 4 Class Distribution -------------------- 78% | Mutant 10% | Derelict-Mutant 10% | Scavenger-Mutant Dominant Class ---------------- Mutant | -10/Materials Mutant | -10/Subcaves Resources | -11 -10 -10 ----------- Run | Yrd Mat Sub Matter Collected 1233 | 347 358 528 Remotely . | . . . Salvage Created 913 | 171 549 193 Parts 68 | 12 37 19 Haulers Intercepted . | . . . Recyclers Shooed 2 | . 2 . Parts Field Recycled . | . . . Retrieved Matter . | . . . Parts Self-Destructed 1 | . . 1 Prevented . | . . . Parts Restored . | . . . Kills | -11 -10 -10 ------- Run | Yrd Mat Sub Combat Hostiles Destroyed 24 | . 12 12 Guns 3 | . 2 1 Cannons 2 | . 1 1 AOE 19 | . 9 10 Classes Destroyed 10 | 2 7 1 Worker 1 | . 1 . Builder 1 | . 1 . Tunneler 7 | 5 2 . Recycler 5 | 1 4 . Mechanic 1 | . 1 . Operator 3 | . 3 . Watcher 3 | . 3 . Swarmer 6 | . 6 . Grunt 6 | . 6 . Subdweller 12 | . . 12 Best Kill Streak 8 | 3 8 3 Combat Bots Only 3 | . 3 3 Max Kills in Single Turn 3 | 1 2 3 Gunslinging . | . . . Exploded 3 | . 2 3 Melee . | . . . Uniques/NPCs Destroyed . | . . . Combat | -11 -10 -10 -------- Run | Yrd Mat Sub Hostile Shots Fired 77 | . 23 54 Missed 15 | . 6 9 Hits 62 | . 17 45 Projectile 62 | . 17 45 Critical Strikes 4 | . 1 3 Part Disruptions 1 | . 1 . Damage Taken 1216 | . 239 977 Core 251 | . 20 231 Absorbed by Shields . | . . . Ignored by Resistances 23 | . . 23 Core Remaining (%) 100 | 100 . . Volleys Fired 102 | 19 44 39 Largest 2 | 2 2 2 Hottest 145 | 60 98 145 Shots Fired 162 | 34 66 62 Gun 70 | 34 16 20 Cannon 45 | . 25 20 Launcher 47 | . 25 22 Special . | . . . Kinetic 73 | 19 31 23 Thermal 13 | . 4 9 Explosive 47 | . 25 22 Electromagnetic 29 | 15 6 8 Robot Hit Streak 8 | 8 5 6 Robot Miss Streak 8 | 2 8 3 Penetration Max . | . . . Secondary Targets . | . . . Shots Hit Robots 83 | 21 26 36 Core Hits 66 | 7 31 28 Critical Kills . | . . . Critical Parts Destroyed . | . . . Critical Strikes 1 | . . 1 Burn 1 | . . 1 Melee Attacks . | . . . Impact . | . . . Slashing . | . . . Piercing . | . . . Sneak Attacks . | . . . Combat Hostiles . | . . . Follow-up Attacks . | . . . Damage Inflicted 4231 | 289 1937 2005 Guns 575 | 289 138 148 Cannons 501 | . 234 267 Explosions 3155 | . 1565 1590 Melee . | . . . Ramming . | . . . Kinetic 744 | 149 275 320 Thermal 275 | . 245 30 Explosive 2943 | . 1353 1590 Electromagnetic 269 | 140 64 65 Impact . | . . . Slashing . | . . . Piercing . | . . . Highest Corruption . | . . . Average Corruption . | . . . Corruption Purged . | . . . Corruption Blocked . | . . . Overload Shots . | . . . Overflow Damage 94 | . 94 . Projectiles . | . . . Explosions 94 | . 94 . Melee . | . . . Knockbacks 3 | . . 3 Impact . | . . . Kinetic 3 | . . 3 Secondary . | . . . Self-Inflicted Damage 62 | . 62 . Shots 3 | . 3 . Rammed . | . . . Targets Rammed . | . . . Kicked . | . . . Crushed . | . . . Highest Temperature 108 | . 108 24 Average Temperature 22 | . 23 12 Received Heat Transfer 246 | . 75 171 Siege Activations . | . . . Martial Activations . | . . . Shielding Activations . | . . . Robots Disrupted . | . . . Combat Hostiles . | . . . Robots Corrupted . | . . . Combat Hostiles . | . . . Parts Fried 3 | 3 . . Impact Corruptions . | . . . Robots Melted . | . . . Combat Hostiles . | . . . Parts Melted . | . . . Heat Transferred 422 | . 274 148 Parts Sabotaged . | . . . Parts Stolen . | . . . Parts Stripped . | . . . Power Chain Reactions 1 | . 1 . Alert | -11 -10 -10 ------- Run | Yrd Mat Sub Maximum Alert Level 2 | . 2 . Low Security (%) 66 | 100 59 . Level 1 28 | . 34 . Level 2 5 | . 6 . Level 3 . | . . . Level 4 . | . . . Level 5 . | . . . High Security . | . . . Max Security . | . . . Peak Influence 418 | 10 418 . Initial . | . . . Average 148 | 1 178 . Influence Increases 772 | 30 742 . Destroy 0b10 Robot/C 240 | . 240 . Destroy 0b10 Robot/NC 105 | 30 75 . Destroy Leader 66 | . 66 . Disable Machine 165 | . 165 . Destroy Structure 196 | . 196 . Influence Decreases 772 | 30 336 406 Entered New Map 196 | . . 196 Time Decay 516 | 30 336 150 Lost Part 60 | . . 60 Squads Dispatched 3 | . 3 . Investigation . | . . . Extermination . | . . . Reinforcement 3 | . 3 . Assault . | . . . Garrison . | . . . Intercept . | . . . Searches Triggered . | . . . Construction Impeded . | . . . Haulers Reinforced . | . . . Active Scanning Responses . | . . . Cargo Convoy Interrupts . | . . . Stealth | -11 -10 -10 --------- Run | Yrd Mat Sub Distress Signals 1 | . 1 . Communications Jammed . | . . . Distress Signals . | . . . Times Spotted 36 | . 22 14 Peak Tracking Total 3 | . 3 3 Tactical Retreats 1 | . . 1 Traps | -11 -10 -10 ------- Run | Yrd Mat Sub Traps Triggered . | . . . Indirectly . | . . . Trap Hack Attempts . | . . . Triggered . | . . . Disarmed . | . . . Reprogrammed . | . . . Reused . | . . . Traps Extracted . | . . . Installed . | . . . Triggered . | . . . Machines | -11 -10 -10 ---------- Run | Yrd Mat Sub Machines Disabled 11 | . 11 . Max in Single Turn 2 | . 2 . Machines Repaired . | . . . Machines Dismantled . | . . . Machines Sabotaged . | . . . Overloaded Fab Kills . | . . . Hacking | -11 -10 -10 --------- Run | Yrd Mat Sub Machines Accessed . | . . . Terminals . | . . . Fabricators . | . . . Repair Stations . | . . . Recycling Units . | . . . Scanalyzers . | . . . Garrison Access . | . . . Total Hacks . | . . . Successful . | . . . Failed . | . . . Catastrophic . | . . . Database Lockouts . | . . . Manual . | . . . Terminals . | . . . Fabricators . | . . . Repair Stations . | . . . Recycling Units . | . . . Scanalyzers . | . . . Garrison Access . | . . . Terminal Hacks . | . . . Fabricator Hacks . | . . . Repair Station Hacks . | . . . Recycling Unit Hacks . | . . . Scanalyzer . | . . . Garrison Access Hacks . | . . . Unauthorized Hacks . | . . . Terminals . | . . . Fabricators . | . . . Repair Stations . | . . . Recycling Units . | . . . Scanalyzers . | . . . Garrison Access . | . . . Data Cores Recovered 1 | . 1 . Used . | . . . Hacking Detections . | . . . Full Trace Events . | . . . Feedback Events . | . . . Feedback Blocked . | . . . Robot Schematics Acquired . | . . . Robots Built . | . . . Authchips . | . . . Time . | . . . Total Robot Build Rating . | . . . Part Schematics Acquired . | . . . Parts Built . | . . . Authchips . | . . . Time . | . . . Total Part Build Rating . | . . . Part Studies Acquired . | . . . Parts Repaired . | . . . Time . | . . . Parts Recycled . | . . . Recycled Matter . | . . . Retrieved Matter . | . . . Retrieved Components . | . . . Parts Scanalyzed . | . . . Part Schematics Acquired . | . . . Parts Damaged . | . . . Bothacking | -11 -10 -10 ------------ Run | Yrd Mat Sub Used RIF Installer . | . . . Robots Hacked . | . . . Non-combat . | . . . Combat . | . . . Robot Hacks Applied . | . . . Relay Couplers Released . | . . . Fabnet Peak Effective % . | . . . Robots Rewired . | . . . Allies Hacked . | . . . Hacks Repelled . | . . . Allies | -11 -10 -10 -------- Run | Yrd Mat Sub Total Allies . | . . . Largest Group . | . . . Highest-Rated Group . | . . . Highest-Rated Ally . | . . . Total Orders . | . . . Ally Attacks . | . . . Total Damage . | . . . Kills . | . . . Allies Corrupted . | . . . Allies Melted . | . . . Intel | -11 -10 -10 ------- Run | Yrd Mat Sub Active Infowar (turns) 1689 | 67 919 703 Optics 1341 | . 785 556 Terrain 1689 | 67 919 703 Robot Analysis Total . | . . . Derelict Logs Recovered 2 | . . 2 Drone Launches . | . . . Drone Recoveries . | . . . Exploration | -11 -10 -10 ------------- Run | Yrd Mat Sub Turns Passed 1913 | 191 919 803 Spaces Moved 1681 | 143 902 636 Core 87 | 5 . 82 Treads . | . . . Legs . | . . . Wheels 1594 | 138 902 554 Hover . | . . . Flight . | . . . Fastest Speed 50 | 50 80 80 Average Speed 88 | 85 80 101 Slowest Speed 250 | 100 80 250 Overloaded Moves . | . . . Propulsion Burnouts . | . . . Robots Hopped . | . . . Potential Cave-ins . | . . . Cave-ins Triggered . | . . . Exploration Rate (%) 41 | 4 95 26 Regions Visited 2 Branch Regions 1 Pre-discovered Areas . | . . . Known Exits Taken . | . . . Unknown Exits Taken 2 | 1 1 . Scrap Searched 8 | . . 8 Spaces Dug 13 | . 13 . Terrain Destroyed 350 | . 216 134 Melee . | . . . Projectile 4 | . 4 . AOE 346 | . 212 134 Terrain Rammed . | . . . Walls Destroyed . | . . . Machines Disabled . | . . . Actions | -11 -10 -10 --------- Run | Yrd Mat Sub Total 1941 | 173 1036 732 Wait 88 | . 67 21 Move 1679 | 142 901 636 Hop . | . . . Pick Up 13 | 1 5 7 Fast Attach 19 | 7 4 8 Attach 6 | . 1 5 Detach 5 | . 4 1 Swap 13 | 2 3 8 Drop 16 | 2 7 7 Fire 102 | 19 44 39 Melee . | . . . Ram . | . . . Kick . | . . . Crush . | . . . Escape Stasis . | . . . Rewire . | . . . Trap . | . . . Miscellaneous . | . . . Route ------- -11/Scrapyard -10/Materials (discovered 5 exits: [*Mat x3] / [*Min] / [*Sub]) -10/Subcaves (discovered 1 exit: Rec) History --------- Turn | Location | Event 14 | -11/Scrapyard | Discovered new exit (range 16) 192 | -11/Scrapyard | Entered Materials 363 | -10/Materials | Discovered new exit (range 6) 450 | -10/Materials | Discovered new exit (range 16) 590 | -10/Materials | Discovered new exit (range 4) 668 | -10/Materials | Build established: Mutant 810 | -10/Materials | Discovered new exit (range 12) 872 | -10/Materials | Discovered new exit (range 6) 1111 | -10/Materials | Entered Subcaves 1112 | -10/Subcaves | Approached by a straggling Scientist 1124 | -10/Subcaves | Identified exit to Recycling 1165 | -10/Subcaves | Ambushed by Subdweller buried in earth 1240 | -10/Subcaves | Lost 4 parts (1p2n1w) 1396 | -10/Subcaves | Ambushed by Subdwellers from Twisted Machinery 1426 | -10/Subcaves | Shifting Twisted Machinery released Spk. Treads 1431 | -10/Subcaves | Shifting Twisted Machinery released Spk. Treads 1614 | -10/Subcaves | Ambushed by Subdwellers from Twisted Machinery 1653 | -10/Subcaves | Learned Materials security intel 1665 | -10/Subcaves | Disturbed a concealed Subdweller 1668 | -10/Subcaves | Core integrity fell below 50% 1704 | -10/Subcaves | Lost 3 parts (1n1u1w) 1903 | -10/Subcaves | Core integrity fell below 20% 1914 | -10/Subcaves | Destroyed by K8-SPM(R) with Subdweller Machine Gun Last Messages --------------- 01717_ Acquired 24 matter. 01721_ Subatomizers dissect the Sub. Beam Cannon. 01724_ Dropped Imp. Light Cannon. 01731_ Subatomizers dissect the Battle Rifle. 01731_ Acquired Barrage Gun. 01734_ Acquired Sub. Monowheel. 01746_ Subatomizers dissect the Battle Rifle. 01751_ Acquired 10 matter. 01756_ Subatomizers dissect the Battle Rifle. 01815_ Acquired Mak. Kinetic Plating. 01816_ Dropped Imp. Terrain Scanner. 01817_ Acquired Imp. Terrain Scanner. 01826_ Dropped Riot Gun. 01828_ Acquired Riot Gun. 01900_ SJ-13V(R) destroyed. 01900_ Critical hit (Destroy). 01904_ Rocket Launcher destroyed. 01907_ The unstable cave ceiling collapses. Map ----- +----------------------------------------------------+ | ?????????????????????????????????????????????????? | | ?????????????????????????????????????????????????? | | ?????????????????????????????????????????????????? | | ?????????????????????????????????????????????????? | | ?????????????????????????????????????????????????? | | ?????????????????????????????????????????????????? | | ?????????????????????????????????????????????????? | | ?????????????????????????????????????????????????? | | ?????????????????????????????????????????????????? | | ?????????????????????????????????????????????????? | | ?????????????????????????????????????????????????? | | ?????????????????????????????????????????????????? | | ?????????????????? ??????????????????#???????????? | | ????????????????## #?????????????????????????????? | | ????????????????# ##??????????????????????###### | | ????????????????# ####??????????? ?????## | | ????????????????? ???????????????????????# | | ?????????????????? ???????????????????????# | | ???????????????#???# R ??????????????#????????# | | ???????????????# ??# | ??????###?#######?????## | | ???????????????# ?# !% ?????## ### # # #????## | | ????????????????# # = ####### ##??## # | | ???????????# # # # #### ## | | ????????????# [ #### # ## ##? | | ????????????????# ## #??# ## # # #? | | ??????????????????# ## @ ### #??# ### ####? | | ???????????????#??#?### ####?# ##?# ## ##?? | | ?????????????????????## ##???# #### ### ### | | ????????????????#?????## ??#?## #?####?## # | | ?????????????????#?????######??#?## ##?#?????# # | | ???????????????????????????#??????####????????### | | ??????????????#????????????#????????????????????## | | ????????????????#?#??#??#????????????????????????? | | ????????????????????????????????#?#?#????????????? | | ?????????????????##########????????##????????????? | | ???????????#?#??## ## ####?#?????#???????????? | | ???????#??##???##" [##???#?????????#????# | | ???????????????#""" ] #?????????????#????# | | ????????#????### " & ][#?#????#?????#?#??## | | ???????????????#""" ##???##???????????# | | ????????#?#????#"" ] & """##?#??##??????????## | | ???????????????#""&" ###???#???#????????## | | ????????#?#????#"" & ##???#?????#??#????## | | ???????????????#"" " ### ##???#?????#???###??# | | ?????????????#?##"" # #????###????????????# | | ??????????#????## ###????????#????#????# | | ????????????????## ## "#?#???#??#???#???#?## | | ?????#?????????#######" "###?#??###?##"?? ??# | | ???#????#??????# ### " ###?#?????#"##? ## | | ???????????????# ###?????#""##?# | +----------------------------------------------------+ Best States ------------- Heat Dissipation 25 Energy Generation 15 Energy Capacity 250 Matter Stores 300 Matter Capacity 300 Sight Range 18 Terrain Scan Range 16 Terrain Scan Density 10 Armor Coverage 100 Resistance: KI 10 Evasion (%) 44 Defensive Hacking 11 Item Schematics ----------------- None Robot Schematics ------------------ None Fabricated ------------ Nothing Repaired ---------- Nothing Studied --------- None Alien Tech Used ----------------- None Achievements -------------- None Challenges ------------ None Game ------ Seed AutogunShrapnelAirjet Manual? 0 Play Time 00:29:12 Cumulative 32.7 hours Start 2026.02.11 @ 23:52:48 End 2026.02.12 @ 00:20:32 Sessions 1 Manual Loads 0 Difficulty Rogue Special Mode None Game No. 36 Rogue 36 Adventurer 0 Explorer 0 Win Type - Total 0 Types 0/0/0/0/0/0/0/0/0/0 Lore% 16 Gallery% 15 Achievement% 14 Wizard Run 0 Options --------- Layout 1 ASCII 0 Keyboard 1 Movement Numpad Keybinds 0 Fullscreen 2 Font 24/Cog Map View 50x35 Zoom Use 0% Tactical HUD 1 Map Filters NONE Filters NONE Steam 1 RUN: b57c2025-d461-4505-939e-95a38f4fd3c2